bitfinex-derivatives/quotes_SOLF0:USTF0_20220108
["timestamp","ask_amount","ask_price","bid_price","bid_amount"]
[1641655769248,6.70334113,143.22,143.15,30.01832647]
[1641655770245,1.64646353,143.21,143.15,27.66479]
[1641655770445,7.2,143.21,143.15,27.66479]
[1641655771046,8.84646353,143.21,143.15,27.66479]
[1641655771650,1.64646353,143.2,143.15,27.66479]
[1641655771846,14.43304251,143.21,143.15,27.66479]
[1641655772246,1.64646353,143.2,143.13,2.35353647]
[1641655772447,1.64646353,143.19,143.12,2.35353647]
[1641655772646,21.64646353,143.17,143.11,27.66479]
[1641655772846,1.64646353,143.12,143.07,27.66479]
[1641655773047,8.166,143.12,143.06,38.88931155]
[1641655773246,13.75602859,143.12,143.06,38.88931155]
[1641655773846,13.75602859,143.12,143.06,2.83972986]
[1641655775246,13.75602859,143.12,143.06,5.19326633]
[1641655775646,6.70617538,143.16,143.07,1.747]
[1641655775846,35.71064149,143.18,143.11,2.35353647]
[1641655776047,8.04585149,143.18,143.11,9.23053647]
[1641655776649,8.04585149,143.18,143.11,6.877]
[1641655776847,8.04585149,143.18,143.11,34.54179]
[1641655777048,8.04585149,143.18,143.12,2.83972986]
[1641655777450,8.04585149,143.18,143.12,5.19326633]
[1641655777950,8.04585149,143.18,143.12,2.83972986]
[1641655778151,8.04585149,143.18,143.13,7.28395683]
[1641655778350,4.93042036,143.21,143.13,7.28395683]
[1641655778852,5.58679862,143.2,143.14,27.66479]
[1641655779053,5.58679862,143.2,143.15,4.93042036]
[1641655779854,5.58679862,143.2,143.14,34.57679]
[1641655779855,5.58679862,143.2,143.14,39.50721036]
[1641655781054,5.58679862,143.2,143.16,4.93042036]
[1641655781453,7.23326215,143.2,143.16,4.93042036]
[1641655782154,21.64646353,143.17,143.16,4.93042036]
[1641655782355,13.05079161,143.17,143.16,4.93042036]
[1641655782556,13.05079161,143.17,143.16,2.036e-05]
[1641655782756,13.05079161,143.17,143.14,2.036e-05]
[1641655783755,13.05079161,143.17,143.12,2.80215701]
[1641655783955,5.58779161,143.17,143.12,2.80215701]
[1641655784155,11.75879161,143.17,143.12,2.80215701]
[1641655784556,11.75879161,143.17,143.12,17.59478856]
[1641655784961,11.75879161,143.17,143.12,19.94832503]
[1641655785258,6.171,143.17,143.12,19.94832503]
[1641655785460,6.171,143.17,143.12,5.15569348]
[1641655786458,5.58692648,143.2,143.13,2.80215701]
[1641655786858,5.58692648,143.2,143.14,27.66479]
[1641655787863,5.58692648,143.2,143.13,87.26802503]
[1641655788065,12.25292648,143.2,143.15,2.80215701]
[1641655788663,1.64646353,143.19,143.15,2.80215701]
[1641655788863,5.58774487,143.18,143.15,2.80215701]
[1641655789064,5.58774487,143.18,143.14,2.80215701]
[1641655789463,1.64646353,143.16,143.14,2.80215701]
[1641655789667,5.452,143.16,143.14,2.80215701]
[1641655790967,12.68698352,143.16,143.12,2.80215701]
[1641655791567,5.58894621,143.14,143.12,2.80215701]
[1641655791767,5.58894621,143.14,143.11,2.80215701]
[1641655794070,5.58894621,143.14,143.09,17.59478856]
[1641655795274,5.58894621,143.14,143.09,19.94832503]
[1641655795473,5.58894621,143.14,143.09,17.59478856]
[1641655796074,5.58894621,143.14,143.1,2.80215701]
[1641655796776,5.58894621,143.14,143.09,2.80215701]
[1641655796975,1.64646353,143.13,143.09,2.80215701]
[1641655797176,2.78884012,143.09,143.08,14.79263155]
[1641655797577,8.616,143.1,143.08,14.79263155]
[1641655797779,8.616,143.1,143.06,14.79263155]
[1641655798378,43.08986409,143.15,143.07,2.35353647]
[1641655798579,34.65486409,143.15,143.07,2.35353647]
[1641655798980,27.66479,143.15,143.07,30.01832647]
[1641655799279,29.31125353,143.15,143.07,30.01832647]
[1641655799479,1.64646353,143.14,143.07,42.45742155]
[1641655799680,7.30546353,143.14,143.07,42.45742155]
[1641655800080,1.64646353,143.13,143.07,14.79263155]
[1641655800282,27.30546353,143.14,143.07,14.79263155]
[1641655800481,25.659,143.14,143.07,2.35353647]
[1641655800680,5.659,143.14,143.07,2.35353647]
[1641655801282,41.36155314,143.15,143.06,42.45742155]
[1641655801481,41.36155314,143.15,143.06,44.20342155]
[1641655801980,34.65510841,143.15,143.1,2.35353647]
[1641655802182,10.36,143.17,143.12,2.35353647]
[1641655802384,42.69929481,143.18,143.12,2.35353647]
[1641655802583,6.70753237,143.13,143.1,2.35353647]
[1641655802984,5.5884545,143.16,143.1,2.35353647]
[1641655803585,5.5884545,143.16,143.11,2.35353647]
[1641655804085,5.5884545,143.16,143.1,63.085]
[1641655804285,5.5884545,143.16,143.1,77.87763155]
[1641655805288,5.5884545,143.16,143.12,27.66479]
[1641655805487,6.70473234,143.19,143.12,27.66479]
[1641655805688,6.70473234,143.19,143.12,30.01832647]
[1641655805888,6.70473234,143.19,143.12,27.66479]
[1641655806189,6.70473234,143.19,143.12,42.45742155]
[1641655806387,6.70473234,143.19,143.14,2.35353647]
[1641655806587,6.70473234,143.19,143.12,42.45742155]
[1641655807087,34.65193366,143.21,143.14,2.35353647]
[1641655807287,34.65193366,143.21,143.14,69.92033647]
[1641655807687,34.65193366,143.21,143.14,67.5668]
[1641655807890,5.58693326,143.2,143.14,67.5668]
[1641655808087,5.58693326,143.2,143.15,2.35353647]
[1641655808287,5.58693326,143.2,143.14,69.92033647]
[1641655808788,7.23339679,143.2,143.14,67.5668]
[1641655809190,5.58693326,143.2,143.14,67.5668]
[1641655809990,5.58693326,143.2,143.14,69.92033647]
[1641655810191,5.58693326,143.2,143.14,67.5668]
[1641655811894,5.58693326,143.2,143.14,69.92033647]
[1641655812095,5.58693326,143.2,143.14,67.5668]
[1641655812495,5.58743597,143.18,143.14,67.5668]
[1641655813499,5.58743597,143.18,143.17,2.35353647]
[1641655813699,6.98714366,143.21,143.14,67.5668]
[1641655814500,6.98714366,143.21,143.15,2.35353647]
[1641655815102,6.98714366,143.21,143.14,67.5668]
[1641655815503,33.25173549,143.2,143.14,67.5668]
[1641655815702,53.10387537,143.2,143.14,67.5668]
[1641655816203,19.85213988,143.19,143.14,67.5668]
[1641655816402,19.85213988,143.19,143.14,59.626418]
[1641655816802,19.85213988,143.19,143.16,2.35353647]
[1641655817002,5.58694549,143.2,143.16,6.361]
[1641655817402,6.70341369,143.22,143.17,30.01832647]
[1641655817602,42.45742155,143.23,143.17,27.66479]
[1641655817802,42.45742155,143.23,143.18,2.35353647]
[1641655818007,19.8482794,143.22,143.17,27.66479]
[1641655818207,19.8482794,143.22,143.21,2.35353647]
[1641655818604,19.8482794,143.24,143.17,29.40979]
[1641655818804,19.8482794,143.24,143.17,31.76332647]
[1641655819005,5.58564077,143.23,143.15,4.09853647]
[1641655819205,5.58564077,143.23,143.15,2.35353647]
[1641655819406,5.58564077,143.23,143.16,14.79263155]
[1641655819705,27.66479,143.22,143.16,14.79263155]
[1641655819906,5.58645102,143.21,143.16,14.79263155]
[1641655820509,5.58645102,143.21,143.14,59.626418]
[1641655820707,13.68720569,143.25,143.14,59.626418]
[1641655820907,13.68720569,143.25,143.16,2.35353647]
[1641655821108,19.84723201,143.24,143.14,63.626418]
[1641655821308,19.84723201,143.24,143.15,1.745]
[1641655821507,19.84723201,143.24,143.18,30.01832647]
[1641655821708,19.84723201,143.24,143.18,27.66479]
[1641655821910,19.84723201,143.24,143.19,2.35353647]
[1641655822109,19.84723201,143.24,143.18,27.66479]
[1641655822310,19.84723201,143.24,143.19,2.35353647]
[1641655822709,19.84723201,143.24,143.18,27.66479]
[1641655823511,19.84723201,143.24,143.22,2.35353647]
[1641655824110,19.84723201,143.27,143.21,27.66479]
[1641655824511,19.84723201,143.27,143.24,2.35353647]
[1641655824812,19.84723201,143.27,143.24,7.844]
[1641655825412,6.70019584,143.28,143.24,7.844]
[1641655826112,27.66479,143.3,143.24,7.844]
[1641655826512,19.83915333,143.29,143.27,2.35353647]
[1641655826716,19.83915333,143.29,143.21,27.66479]
[1641655826912,27.66479,143.3,143.21,27.66479]
[1641655826913,33.2476026,143.3,143.23,2.35353647]
[1641655827311,33.2476026,143.3,143.21,27.66479]
[1641655827512,5.5828126,143.3,143.25,2.35353647]
[1641655827912,10.4,143.31,143.24,34.07879]
[1641655828114,27.66479,143.33,143.29,2.35353647]
[1641655828312,27.66479,143.33,143.29,8.44153647]
[1641655828712,19.83721113,143.32,143.29,6.088]
[1641655828913,19.83721113,143.32,143.31,2.35353647]
[1641655829113,19.83721113,143.32,143.29,6.088]
[1641655829313,6.69782935,143.34,143.29,6.088]
[1641655829913,6.69782935,143.34,143.3,2.35353647]
[1641655830715,6.69782935,143.34,143.29,6.088]
[1641655831114,6.69782935,143.34,143.29,8.44153647]
[1641655831314,6.69782935,143.34,143.3,2.35353647]
[1641655831515,27.66479,143.35,143.27,27.66479]
[1641655831715,27.66479,143.35,143.31,2.35353647]
[1641655832516,27.66479,143.35,143.3,7.607]
[1641655832716,27.66479,143.35,143.31,2.35353647]
[1641655833118,27.66479,143.35,143.27,29.40879]
[1641655833319,27.66479,143.35,143.29,2.35353647]
[1641655834021,27.66479,143.35,143.27,27.66479]
[1641655834222,27.66479,143.35,143.32,2.35353647]
[1641655834419,27.66479,143.35,143.3,2.35353647]
[1641655834620,27.66479,143.35,143.27,27.66479]
[1641655835321,27.66479,143.35,143.29,2.35353647]
[1641655835722,27.66479,143.35,143.31,2.35353647]
[1641655836121,27.66479,143.35,143.34,2.35353647]
[1641655836721,27.66479,143.35,143.28,5.744]
[1641655837121,27.66479,143.35,143.31,2.35353647]
[1641655837522,27.66479,143.35,143.33,2.35353647]
[1641655837922,27.66479,143.35,143.27,31.66479]
[1641655838123,27.66479,143.35,143.32,2.35353647]
[1641655838324,54.89227296,143.35,143.28,2.35353647]
[1641655838524,1.64646353,143.34,143.27,2.35353647]
[1641655838723,21.64646353,143.3,143.25,2.35353647]
[1641655838923,34.29739478,143.3,143.25,2.35353647]
[1641655839526,32.65093125,143.3,143.25,2.35353647]
[1641655839731,27.66479,143.29,143.25,2.35353647]
[1641655841232,5.58293125,143.3,143.25,2.35353647]
[1641655841628,5.58293125,143.3,143.23,4.0]
[1641655842229,5.58293125,143.3,143.29,2.35353647]
[1641655842432,6.98153384,143.33,143.23,4.0]
[1641655843132,6.98153384,143.33,143.29,2.35353647]
[1641655844035,6.98153384,143.33,143.25,4.0]
[1641655844333,1.64646353,143.32,143.22,101.76882902]
[1641655844734,7.22849273,143.32,143.22,101.76882902]
[1641655845033,5.5820292,143.32,143.23,4.0]
[1641655845635,21.64646353,143.29,143.22,100.12236549]
[1641655845834,1.64646353,143.27,143.22,4.90933902]
[1641655846035,21.64646353,143.24,143.22,4.90933902]
[1641655846236,28.97546353,143.24,143.19,14.79263155]
[1641655846438,5.58588965,143.22,143.19,14.79263155]
[1641655846637,5.58588965,143.22,143.16,14.79263155]
[1641655847739,33.25067965,143.22,143.16,14.79263155]
[1641655847940,33.25067965,143.22,143.16,2.76628832]
[1641655848441,33.25067965,143.22,143.18,2.35353647]
[1641655848642,27.66479,143.24,143.18,2.35353647]
[1641655848843,27.66479,143.24,143.15,2.76628832]
[1641655849342,27.66479,143.24,143.18,2.35353647]
[1641655850144,27.66479,143.24,143.15,2.76628832]
[1641655850351,47.66479,143.24,143.16,2.35353647]
[1641655850646,47.66479,143.24,143.15,14.79263155]
[1641655851144,47.66479,143.24,143.18,2.35353647]
[1641655851545,47.66479,143.24,143.15,2.76829121]
[1641655852347,54.13579,143.24,143.15,2.76829121]
[1641655852547,54.13579,143.24,143.17,2.35353647]
[1641655853450,5.58580708,143.23,143.17,2.35353647]
[1641655853652,5.58580708,143.23,143.14,42.45742155]
[1641655853851,5.58580708,143.23,143.14,17.14616802]
[1641655854055,5.58580708,143.23,143.14,14.79263155]
[1641655854252,1.64646353,143.2,143.14,14.79263155]
[1641655854457,14.10910522,143.2,143.14,14.79263155]
[1641655854654,14.10910522,143.2,143.14,2.7671719]
[1641655855054,5.58822142,143.16,143.14,2.7671719]
[1641655855255,13.16922142,143.16,143.14,2.7671719]
[1641655855455,13.16922142,143.16,143.13,2.35353647]
[1641655856054,13.16922142,143.16,143.12,27.66479]
[1641655856257,6.9881202,143.19,143.14,2.35353647]
[1641655856957,6.9881202,143.19,143.12,27.66479]
[1641655857358,6.9881202,143.19,143.13,2.35353647]
[1641655858159,6.9881202,143.19,143.12,27.66479]
[1641655859062,6.9881202,143.19,143.14,2.35353647]
[1641655859662,6.9881202,143.19,143.13,8.069]
[1641655859864,6.9881202,143.19,143.13,10.42253647]
[1641655860067,6.9881202,143.19,143.13,8.069]
[1641655860263,6.9881202,143.19,143.13,10.42253647]
[1641655860463,6.9881202,143.19,143.12,27.66479]
[1641655861467,6.9881202,143.19,143.14,2.35353647]
[1641655861665,6.9881202,143.19,143.12,30.01832647]
[1641655861866,13.5781202,143.19,143.12,30.01832647]
[1641655862067,5.5876327,143.18,143.12,30.01832647]
[1641655862466,5.5876327,143.18,143.12,27.66479]
[1641655862866,5.58878748,143.15,143.12,27.66479]
[1641655863067,14.26178748,143.15,143.12,27.66479]
[1641655863271,14.26178748,143.15,143.1,2.35353647]
[1641655863467,5.58955572,143.13,143.09,14.79263155]
[1641655863670,5.59069516,143.1,143.09,14.79263155]
[1641655863869,11.08669516,143.1,143.09,14.79263155]
[1641655864070,38.75148516,143.1,143.09,14.79263155]
[1641655864269,40.39794869,143.1,143.09,14.79263155]
[1641655864470,40.39794869,143.1,143.06,38.88931155]
[1641655865071,21.64646353,143.09,143.06,33.29724357]
[1641655865271,1.64646353,143.08,143.03,2.35353647]
[1641655865870,20.0,143.09,143.01,27.66479]
[1641655866070,20.0,143.09,143.03,2.35353647]
[1641655866471,20.0,143.09,143.04,2.35353647]
[1641655866670,27.66479,143.1,143.04,2.35353647]
[1641655867073,27.66479,143.1,143.01,27.66479]
[1641655867371,34.80879,143.1,143.05,2.58578957]
[1641655867571,34.80879,143.1,143.05,4.93932604]
[1641655867772,34.80879,143.1,143.05,2.58578957]
[1641655867971,36.45525353,143.1,143.06,2.35353647]
[1641655868171,34.80879,143.1,143.06,2.35353647]
[1641655868773,34.80879,143.1,143.02,4.0]
[1641655869171,34.80879,143.1,143.07,2.35353647]
[1641655869372,27.66479,143.1,143.07,2.35353647]
[1641655870574,33.25567023,143.1,143.07,2.35353647]
[1641655872479,33.25567023,143.1,143.03,73.6362]
[1641655872679,33.25567023,143.1,143.07,2.35353647]
[1641655873678,5.59114879,143.09,143.07,2.35353647]
[1641655876482,4.02145029,143.06,143.03,69.6362]
[1641655876683,5.59114879,143.09,143.02,4.0]
[1641655877085,5.59114879,143.09,143.03,4.0]
[1641655877287,5.59114879,143.09,143.03,9.527]
[1641655877486,5.59114879,143.09,143.03,5.527]
[1641655877684,5.59114879,143.09,143.04,2.58423937]
[1641655879288,5.59114879,143.09,143.03,2.58423937]
[1641655880490,5.59114879,143.09,143.03,6.58423937]
[1641655880787,5.59114879,143.09,143.03,2.58423937]
[1641655881487,5.59114879,143.09,143.03,6.58423937]
[1641655881689,5.59114879,143.09,143.03,2.58423937]
[1641655881891,5.59114879,143.09,143.03,6.58423937]
[1641655883695,5.59088023,143.1,143.04,2.58423937]
[1641655885194,5.59088023,143.1,143.04,6.58423937]
[1641655885597,5.59088023,143.1,143.04,2.58423937]
[1641655886595,33.25443346,143.13,143.07,27.66479]
[1641655887297,33.25443346,143.13,143.05,69.2986]
[1641655887898,33.25443346,143.13,143.08,2.58423937]
[1641655888598,33.25443346,143.13,143.06,2.58423937]
[1641655889000,5.59039295,143.11,143.06,2.58423937]
[1641655889400,5.59090116,143.09,143.06,2.58423937]
[1641655889803,5.59154337,143.08,143.06,2.58423937]
[1641655890004,5.59291772,143.04,143.02,39.4682975]
[1641655890203,11.05691772,143.04,143.02,39.4682975]
[1641655890402,5.464,143.04,143.02,33.87456194]
[1641655890702,27.66479,143.03,143.02,33.87456194]
[1641655890902,27.66479,143.03,142.96,69.1121]
[1641655891103,34.66097708,143.03,142.96,69.1121]
[1641655891304,34.66097708,143.03,142.94,68.1844]
[1641655891706,4.0,143.02,142.94,68.1844]
[1641655891911,6.99716615,143.01,142.94,68.1844]
[1641655892107,20.0,143.0,142.89,1.748]
[1641655892408,24.0,142.97,142.89,1.748]
[1641655892709,27.66479,142.94,142.88,124.36286733]
[1641655892908,33.76479,142.94,142.88,58.33396733]
[1641655893107,33.76479,142.94,142.89,15.04771485]
[1641655894207,33.76479,142.94,142.87,15.04771485]
[1641655894412,57.76479,142.94,142.87,15.04771485]
[1641655894710,27.66479,142.91,142.87,15.04771485]
[1641655894910,35.28479,142.91,142.87,15.04771485]
[1641655895109,35.28479,142.91,142.86,69.6184]
[1641655895313,35.28479,142.91,142.87,14.81607667]
[1641655895512,4.0,142.9,142.87,14.81607667]
[1641655895711,4.0,142.9,142.82,63.85]
[1641655895911,5.59877575,142.89,142.82,63.85]
[1641655896314,5.59877575,142.89,142.82,67.85]
[1641655896513,24.0,142.87,142.79,87.74875733]
[1641655896713,27.66479,142.85,142.79,58.33396733]
[1641655896913,27.66479,142.85,142.77,63.1902]
[1641655897315,5.59941198,142.88,142.8,4.0]
[1641655897815,27.66479,142.91,142.81,4.0]
[1641655898014,27.66479,142.91,142.81,11.603]
[1641655898215,27.66479,142.91,142.83,4.0]
[1641655898415,6.71674259,142.93,142.83,4.0]
[1641655898715,47.66479,142.96,142.86,27.66479]
[1641655898916,47.66479,142.96,142.86,33.36279]
[1641655899116,47.66479,142.96,142.86,35.11179]
[1641655899716,51.66479,142.96,142.86,35.11179]
[1641655900116,51.66479,142.96,142.86,33.36279]
[1641655900319,47.66479,142.96,142.86,33.36279]
[1641655900517,6.99986,142.95,142.86,33.36279]
[1641655901117,27.66479,142.96,142.88,4.0]
[1641655901319,27.66479,142.98,142.88,4.0]
[1641655901517,27.66479,142.98,142.89,1.749]
[1641655901718,27.66479,142.98,142.89,7.98]
[1641655901919,27.66479,142.98,142.89,13.729]
[1641655902118,27.66479,142.98,142.89,9.729]
[1641655902518,27.66479,142.98,142.89,13.729]
[1641655902922,27.66479,142.98,142.9,27.66479]
[1641655903319,47.66479,142.98,142.9,27.66479]
[1641655903519,47.66479,142.98,142.86,29.41279]
[1641655903718,53.68579,142.98,142.86,29.41279]
[1641655903918,60.68442527,142.98,142.86,29.41279]
[1641655904118,64.68442527,142.98,142.86,29.41279]
[1641655904720,92.34921527,142.98,142.86,29.41279]
[1641655905119,88.34921527,142.98,142.86,29.41279]
[1641655905523,68.34921527,142.98,142.86,29.41279]
[1641655905721,40.68442527,142.98,142.86,29.41279]
[1641655905921,27.66479,142.98,142.86,29.41279]
[1641655906121,6.99716615,143.01,142.9,4.0]
[1641655906322,6.99716615,143.01,142.91,1.748]
[1641655906723,30.99716615,143.01,142.91,1.748]
[1641655906923,5.59519434,142.98,142.91,1.748]
[1641655907122,5.59519434,142.98,142.89,32.56748755]
[1641655907622,14.08019434,142.98,142.89,32.56748755]
[1641655907822,14.08019434,142.98,142.89,27.66479]
[1641655908123,14.0803198,142.98,142.89,27.66479]
[1641655908323,21.07895507,142.98,142.89,27.66479]
[1641655909423,4.0,142.97,142.89,27.66479]
[1641655909622,9.59625103,142.96,142.88,4.90269755]
[1641655909822,5.59625103,142.96,142.88,4.90269755]
[1641655910924,33.26104103,142.96,142.88,4.90269755]
[1641655911224,33.26104103,142.96,142.86,32.56748755]
[1641655912423,33.26104103,142.96,142.87,1.749]
[1641655913625,33.26104103,142.96,142.86,34.31648755]
[1641655914026,33.26104103,142.96,142.87,4.90269755]
[1641655914426,27.66479,142.96,142.87,4.90269755]
[1641655915224,5.59687507,142.94,142.87,4.90269755]
[1641655915426,13.58887507,142.94,142.87,4.90269755]
[1641655916426,5.59687507,142.94,142.87,4.90269755]
[1641655917226,6.99863527,142.98,142.88,4.0]
[1641655917427,6.99863527,142.98,142.93,4.0]
[1641655917631,39.28142401,142.99,142.93,11.248]
[1641655917826,39.28142401,142.99,142.95,4.0]
[1641655918028,4.90269755,142.99,142.93,11.248]
[1641655918227,4.90269755,142.99,142.93,7.248]
[1641655918629,6.99692135,143.01,142.93,7.248]
[1641655919630,6.99692135,143.01,142.95,4.90269755]
[1641655921831,5.59477302,143.0,142.95,4.90269755]
[1641655922430,10.49747057,143.0,142.94,4.90269755]
[1641655922632,5.59552258,142.98,142.94,4.90269755]
[1641655923831,5.59552258,142.98,142.93,4.90269755]
[1641655924833,32.56748755,142.99,142.93,4.90269755]
[1641655925033,32.56748755,142.99,142.94,4.90269755]
[1641655925332,4.90269755,142.99,142.94,8.90269755]
[1641655925533,4.90269755,142.99,142.94,10.65069755]
[1641655926234,32.56748755,143.03,142.97,4.90269755]
[1641655927034,27.66479,143.03,142.97,4.90269755]
[1641655927832,27.66479,143.03,142.94,18.84134778]
[1641655927833,32.56748755,143.03,142.99,4.90269755]
[1641655928033,4.90269755,143.03,142.99,4.90269755]
[1641655929035,6.99569765,143.04,142.99,4.90269755]
[1641655930237,5.59338313,143.03,142.99,4.90269755]
[1641655931440,5.59338313,143.03,142.98,7.3146265]
[1641655932240,5.59424646,143.01,142.98,7.3146265]
[1641655932442,11.61424646,143.01,142.97,4.90269755]
[1641655933141,5.59534695,142.98,142.97,4.90269755]
[1641655933341,11.32434695,142.98,142.97,4.90269755]
[1641655934341,5.59534695,142.98,142.97,4.90269755]
[1641655934542,5.59534695,142.98,142.94,4.90269755]
[1641655935543,5.59534695,142.98,142.95,4.90269755]
[1641655936546,20.0,143.0,142.95,4.90269755]
[1641655936744,39.28038171,143.01,142.95,4.90269755]
[1641655937143,39.28038171,143.01,142.96,4.90269755]
[1641655937944,39.28038171,143.01,142.92,21.25395504]
[1641655938945,39.28038171,143.01,142.95,4.94711199]
[1641655939647,34.37768416,143.01,142.96,4.94711199]
[1641655940647,5.59442285,143.0,142.96,4.94711199]
[1641655942450,4.90269755,143.02,142.98,4.0]
[1641655942652,4.90269755,143.02,143.0,4.0]
[1641655942950,4.90269755,143.02,142.98,10.32]
[1641655943150,4.90269755,143.04,142.99,35.02450925]
[1641655943851,4.90269755,143.04,143.0,4.0]
[1641655944453,11.89741654,143.06,143.01,4.94728239]
[1641655945352,6.99471899,143.06,143.01,7.36026171]
[1641655945555,10.49448663,143.07,143.04,4.0]
[1641655945853,14.84134778,143.1,143.05,4.0]
[1641655946053,14.84134778,143.1,143.06,4.0]
[1641655946454,5.59017767,143.11,143.06,4.0]
[1641655946655,9.59017767,143.11,143.04,2.57117988]
[1641655946854,14.84134778,143.13,143.04,2.57117988]
[1641655947056,14.84134778,143.13,143.05,1.747]
[1641655947256,4.0,143.12,143.09,27.66479]
[1641655947858,4.0,143.13,143.09,27.66479]
[1641655948157,4.0,143.15,143.09,27.66479]
[1641655948756,4.0,143.14,143.09,27.66479]
[1641655949158,4.0,143.12,143.06,27.66479]
[1641655949358,5.962,143.16,143.06,27.66479]
[1641655949658,4.0,143.12,143.06,27.66479]
[1641655950657,5.962,143.16,143.06,27.66479]
[1641655950855,4.0,143.13,143.06,27.66479]
[1641655951056,29.58901848,143.14,143.06,27.66479]
[1641655951256,4.0,143.13,143.05,64.9295]
[1641655951458,33.25380848,143.14,143.05,64.9295]
[1641655951657,4.0,143.11,143.05,64.9295]
[1641655953458,5.58992757,143.12,143.05,64.9295]
[1641655953660,4.0,143.11,143.05,64.9295]
[1641655953861,5.58992757,143.12,143.05,64.9295]
[1641655954260,9.58992757,143.12,143.05,64.9295]
[1641655954461,5.58992757,143.12,143.05,64.9295]
[1641655955667,9.58992757,143.12,143.05,64.9295]
[1641655955865,31.66479,143.14,143.05,70.8785]
[1641655957167,27.66479,143.14,143.05,70.8785]
[1641655957369,31.66479,143.14,143.05,70.8785]
[1641655957569,27.66479,143.14,143.05,70.8785]
[1641655957967,4.0,143.12,143.05,70.8785]
[1641655958168,4.0,143.11,143.05,64.9295]
[1641655958368,4.0,143.1,143.05,64.9295]
[1641655958669,4.0,143.11,143.03,68.8053]
[1641655958868,4.0,143.04,143.01,14.84134778]
[1641655959071,7.694,143.04,143.0,14.84134778]
[1641655959368,40.95188415,143.04,143.0,14.84134778]
[1641655959768,5.59410908,143.01,143.0,14.84134778]
[1641655959970,17.73510908,143.01,142.9,195.67218502]
[1641655960170,13.73510908,143.01,142.9,195.67218502]
[1641655960369,4.0,142.97,142.9,195.67218502]
[1641655960569,11.509,142.97,142.9,195.67218502]
[1641655960870,7.509,142.97,142.9,195.67218502]
[1641655961169,7.509,142.97,142.91,2.51409113]
[1641655961369,7.509,142.97,142.92,1.748]
[1641655961568,7.509,142.97,142.94,27.66479]
[1641655961769,5.59410908,143.01,142.92,1.748]
[1641655961971,4.0,142.99,142.92,1.748]
[1641655962169,4.0,142.99,142.93,2.51409113]
[1641655962572,5.59410908,143.01,142.93,2.51409113]
[1641655962772,4.0,142.99,142.93,2.51409113]
[1641655962969,4.0,142.99,142.92,2.51409113]
[1641655963371,4.0,142.97,142.92,2.51409113]
[1641655963571,4.0,142.93,142.92,2.51409113]
[1641655963774,8.511,142.93,142.92,2.51409113]
[1641655963972,8.511,142.93,142.87,39.24269502]
[1641655964973,8.511,142.93,142.85,68.7623]
[1641655965474,8.511,142.93,142.85,96.42709]
[1641655967076,8.511,142.93,142.86,1.749]
[1641655967676,14.10817572,142.93,142.86,1.749]
[1641655967878,4.0,142.9,142.85,68.7623]
[1641655968080,7.986,142.9,142.84,69.5615]
[1641655968278,11.986,142.9,142.84,69.5615]
[1641655968677,7.986,142.9,142.84,69.5615]
[1641655968877,5.59888225,142.89,142.84,69.5615]
[1641655969278,5.59888225,142.89,142.81,66.4387]
[1641655969478,5.59888225,142.89,142.81,94.10349]
[1641655970479,5.59888225,142.89,142.82,1.75]
[1641655970681,4.0,142.89,142.82,1.75]
[1641655970879,4.0,142.9,142.82,1.75]
[1641655971081,27.66479,142.92,142.82,1.75]
[1641655971279,4.0,142.94,142.82,1.75]
[1641655971480,4.0,142.94,142.86,27.66479]
[1641655971880,41.38058379,142.95,142.86,27.66479]
[1641655972080,4.0,142.93,142.86,27.66479]
[1641655973380,53.69617624,142.95,142.86,27.66479]
[1641655973580,4.0,142.91,142.86,27.66479]
[1641655973780,4.0,142.87,142.82,1.75]
[1641655973980,7.603,142.87,142.81,95.85349]
[1641655974182,7.603,142.87,142.81,66.4387]
[1641655975381,4.0,142.84,142.81,66.4387]
[1641655975581,4.0,142.83,142.79,64.4041]
[1641655975783,9.456,142.84,142.77,92.49559]
[1641655975981,9.456,142.84,142.77,27.66479]
[1641655976181,5.456,142.84,142.77,27.66479]
[1641655976584,4.0,142.82,142.77,27.66479]
[1641655976983,5.456,142.84,142.77,27.66479]
[1641655977183,4.0,142.78,142.76,68.1782]
[1641655977382,10.193,142.78,142.74,27.66479]
[1641655977683,6.193,142.78,142.74,27.66479]
[1641655979286,9.884,142.81,142.74,27.66479]